[Event "56th Biel Festival MTO 2023"]
[White "Nguyen,Ngoc Truong Son"]
[Black "Muthaiah AL"]
[Site "Biel"]
[Round "6.6"]
[Annotator "RC"]
[Result "1-0"]
[Date "2023.07.24"]
[WhiteElo "2645"]
[BlackElo "2445"]
[PlyCount "125"]
[TimeControl "60"]

1. d4 {[%emt 0:0:0]} d5 {[%emt 0:0:0]} 2. c4 {[%emt 0:0:0]} c6 {[%emt 0:0:0]} 3. Nf3 {[%emt 0:0:0]} Nf6 {[%emt 0:0:0]} 4. Qc2 {[%emt 0:0:0]} dxc4 {[%emt 0:0:0]} 5. Qxc4 {[%emt 0:0:0]} Bf5 {[%emt 0:0:0]} 6. g3 {[%emt 0:0:0]} e6 {[%emt 0:0:0]} 7. Bg2 {[%emt 0:0:0]} Be7 {[%emt 0:0:0]} 8. O-O {[%emt 0:0:0]} O-O {[%emt 0:0:0]} 9. Nc3 {[%emt 0:0:0]} Nbd7 {[%emt 0:0:0]} 10. Re1 {[%emt 0:0:0]} Bg6 {[%emt 0:9:26]} 11. Qb3 {[%emt 0:5:43]} Qb6 {[%emt 0:4:28]} 12. e4 {[%emt 0:3:38]} Qxb3 {[%emt 0:14:29]} 13. axb3 {[%emt 0:1:31]} Bb4 {[%emt 0:0:16]} 14. Nh4 {[%emt 0:5:59]} e5 {[%emt 0:1:36]} 15. Nxg6 {[%emt 0:20:45]} hxg6 {[%emt 0:0:46]} 16. dxe5 {[%emt 0:4:36]} Nxe5 {[%emt 0:0:34]} 17. Rd1 {[%emt 0:0:43]} Rfd8 {[%emt 0:18:5]} 18. Be3 {[%emt 0:4:8]} Nd3 {[%emt 0:6:47]} 19. Rxa7 {[%emt 0:8:30]} Nxb2 {[%emt 0:1:40]} 20. Rxd8+ {[%emt 0:1:15]} Rxd8 {[%emt 0:0:11]} 21. Na4 {[%emt 0:1:39]} Nxa4 {[%emt 0:16:12]} 22. Rxa4 {[%emt 0:3:6]} Rd1+ {[%emt 0:9:34]} 23. Bf1 {[%emt 0:0:31]} c5 {[%emt 0:0:13]} 24. e5 {[%emt 0:5:49]} Ng4 {[%emt 0:5:25]} 25. Ra8+ {[%emt 0:10:7]} Kh7 {[%emt 0:0:9]} 26. Kg2 {[%emt 0:2:27]} Nxe3+ {[%emt 0:5:31]} 27. fxe3 {[%emt 0:0:15]} Rd5 {[%emt 0:1:8]} 28. Re8 {[%emt 0:3:37]} Bc3 {[%emt 0:0:14]} 29. e6 {[%emt 0:0:24]} fxe6 {[%emt 0:1:30]} 30. Bc4 {[%emt 0:0:42]} Re5 {[%emt 0:2:28]} 31. Kf3 {[%emt 0:0:30]} g5 {[%emt 0:1:53]} 32. g4 {[%emt 0:0:49]} Kg6 {[%emt 0:0:58]} 33. Rf8 {[%emt 0:3:17]} Kh7 {[%emt 0:1:21]} 34. Bd3+ {[%emt 0:6:54]} g6 {[%emt 0:0:2]} 35. Rf7+ {[%emt 0:0:15]} Kh6 {[%emt 0:0:12]} 36. Rxb7 {[%emt 0:0:6]} Rd5 {[%emt 0:0:37]} 37. Bc4 {[%emt 0:0:55]} Rd6 {[%emt 0:1:27]} 38. h3 {[%emt 0:1:17]} Be5 {[%emt 0:0:37]} 39. Ke4 {[%emt 0:0:17]} Bh2 {[%emt 0:0:56]} 40. Re7 {[%emt 0:0:11]} Rb6 {[%emt 0:1:3]} 41. Bxe6 {[%emt 0:30:18]} Rb8 {[%emt 0:0:0]} 42. Kd5 {[%emt 0:0:0]} Rd8+ {[%emt 0:0:0]} 43. Kc6 {[%emt 0:0:0]} Rh8 {[%emt 0:0:0]} 44. e4 {[%emt 0:0:0]} Rh7 {[%emt 0:0:0]} 45. Rxh7+ {[%emt 0:0:0]} Kxh7 {[%emt 0:0:0]} 46. Kxc5 {[%emt 0:0:0]} Kg7 {[%emt 0:0:0]} 47. b4 {[%emt 0:0:0]} Kf6 {[%emt 0:0:0]} 48. Kd5 {[%emt 0:0:0]} Bg3 {[%emt 0:4:25]} 49. b5 {[%emt 0:0:0]} Bf4 {[%emt 0:2:35]} 50. b6 {[%emt 0:0:0]} Bg3 {[%emt 0:0:23]} 51. Bd7 {[%emt 0:0:0]} Bf2 {[%emt 0:4:1]} 52. e5+ {[%emt 0:0:0]} Ke7 {[%emt 0:0:9]} 53. b7 {[%emt 0:0:0]} Ba7 {[%emt 0:0:13]} 54. Ba4 {[%emt 0:0:0]} Bb8 {[%emt 0:0:8]} 55. Bc2 {[%emt 0:0:0]} Kf7 {[%emt 0:1:5]} 56. Bd3 {[%emt 0:0:0]} Ke7 {[%emt 0:2:55]} 57. Bxg6 {[%emt 0:0:0]} Bc7 {[%emt 0:0:9]} 58. Bd3 {[%emt 0:0:0]} Bb8 {[%emt 0:0:13]} 59. Ke4 {[%emt 0:0:0]} Bc7 {[%emt 0:1:11]} 60. Kf5 {[%emt 0:0:0]} Bb8 {[%emt 0:0:11]} 61. Bc4 {[%emt 0:0:0]} Bc7 {[%emt 0:0:52]} 62. e6 {[%emt 0:0:0]} Bf4 {[%emt 0:0:0]} 63. h4 {[%emt 0:0:0]} 1-0

[Event "56th Biel Festival MTO 2023"]
[White "Yuffa,Daniil"]
[Black "Materia,Marco"]
[Site "Biel"]
[Round "6.7"]
[Annotator "ChessBase"]
[Result "1-0"]
[Date "2023.07.24"]
[WhiteElo "2603"]
[BlackElo "2436"]
[PlyCount "135"]
[TimeControl "60"]

1. c4 {[%emt 0:0:0]} e5 {[%emt 0:0:0]} 2. g3 {[%emt 0:0:0]} c6 {[%emt 0:0:0]} 3. Nf3 {[%emt 0:0:0]} e4 {[%emt 0:0:0]} 4. Nd4 {[%emt 0:0:0]} d5 {[%emt 0:0:0]} 5. cxd5 {[%emt 0:0:0]} Qxd5 {[%emt 0:0:0]} 6. Nc2 {[%emt 0:0:0]} Nf6 {[%emt 0:0:0]} 7. Nc3 {[%emt 0:0:0]} Qe5 {[%emt 0:0:0]} 8. Bg2 {[%emt 0:0:0]} Be7 {[%emt 0:0:0]} 9. b4 {[%emt 0:0:0]} O-O {[%emt 0:5:59]} 10. Bb2 {[%emt 0:0:0]} Re8 {[%emt 0:13:36]} 11. O-O {[%emt 0:0:0]} Bf8 {[%emt 0:4:49]} 12. b5 {[%emt 0:25:46]} Qh5 {[%emt 0:7:56]} 13. Ne3 {[%emt 0:5:12]} Bh3 {[%emt 0:3:22]} 14. d3 {[%emt 0:11:47]} exd3 {[%emt 0:4:51]} 15. exd3 {[%emt 0:7:42]} Qxd1 {[%emt 0:4:56]} 16. Rfxd1 {[%emt 0:0:5]} Bxg2 {[%emt 0:0:6]} 17. Kxg2 {[%emt 0:0:3]} a6 {[%emt 0:5:15]} 18. b6 {[%emt 0:10:23]} Nbd7 {[%emt 0:2:56]} 19. Na4 {[%emt 0:1:5]} Nc5 {[%emt 0:14:52]} 20. Nxc5 {[%emt 0:2:40]} Bxc5 {[%emt 0:0:2]} 21. Bxf6 {[%emt 0:0:24]} Bxe3 {[%emt 0:1:43]} 22. fxe3 {[%emt 0:2:48]} gxf6 {[%emt 0:0:2]} 23. Kf3 {[%emt 0:4:6]} Re6 {[%emt 0:5:1]} 24. d4 {[%emt 0:4:53]} Rae8 {[%emt 0:0:59]} 25. Rd3 {[%emt 0:1:7]} f5 {[%emt 0:3:2]} 26. Rc1 {[%emt 0:9:10]} Kg7 {[%emt 0:1:22]} 27. Rc5 {[%emt 0:0:5]} Kg6 {[%emt 0:0:35]} 28. h3 {[%emt 0:4:33]} R8e7 {[%emt 0:3:8]} 29. a4 {[%emt 0:2:48]} f6 {[%emt 0:3:29]} 30. g4 {[%emt 0:2:15]} fxg4+ {[%emt 0:0:10]} 31. hxg4 {[%emt 0:0:3]} h6 {[%emt 0:1:40]} 32. Rf5 {[%emt 0:1:33]} Re8 {[%emt 0:4:49]} 33. a5 {[%emt 0:0:48]} R8e7 {[%emt 0:3:44]} 34. Rh5 {[%emt 0:0:24]} Re4 {[%emt 0:1:8]} 35. Rc5 {[%emt 0:0:15]} R4e6 {[%emt 0:0:45]} 36. Rf5 {[%emt 0:0:5]} Re8 {[%emt 0:0:39]} 37. Rf4 {[%emt 0:2:8]} h5 {[%emt 0:1:5]} 38. gxh5+ {[%emt 0:0:54]} Kxh5 {[%emt 0:0:1]} 39. e4 {[%emt 0:0:28]} Kg6 {[%emt 0:1:21]} 40. Rd1 {[%emt 0:2:47]} Rh8 {[%emt 0:2:58]} 41. Rg1+ {[%emt 0:31:6]} Kf7 {[%emt 0:30:6]} 42. Rfg4 {[%emt 0:1:26]} Rh7 {[%emt 0:0:0]} 43. Rg8 {[%emt 0:0:0]} Re7 {[%emt 0:0:0]} 44. R1g3 {[%emt 0:0:0]} Rd7 {[%emt 0:0:0]} 45. Ke3 {[%emt 0:0:0]} Re7 {[%emt 0:0:0]} 46. Kd3 {[%emt 0:0:0]} Rd7 {[%emt 0:0:0]} 47. Kc4 {[%emt 0:0:0]} Re7 {[%emt 0:0:0]} 48. R8g4 {[%emt 0:0:0]} Rd7 {[%emt 0:0:0]} 49. Rf4 {[%emt 0:0:0]} Ke7 {[%emt 0:0:0]} 50. Rg8 {[%emt 0:0:0]} Rf7 {[%emt 0:0:0]} 51. Rb8 {[%emt 0:0:0]} Rh7 {[%emt 0:0:18]} 52. Rg4 {[%emt 0:0:0]} Ke6 {[%emt 0:5:30]} 53. Re8+ {[%emt 0:0:0]} Kf7 {[%emt 0:0:57]} 54. Rc8 {[%emt 0:0:0]} Ke6 {[%emt 0:0:24]} 55. Rgg8 {[%emt 0:2:9]} Rh4 {[%emt 0:1:59]} 56. Rc7 {[%emt 0:1:48]} Rhh7 {[%emt 0:0:28]} 57. Re8+ {[%emt 0:2:3]} Rde7 {[%emt 0:0:43]} 58. Rxb7 {[%emt 0:0:39]} Rxe8 {[%emt 0:0:4]} 59. Rxh7 {[%emt 0:0:4]} Kd6 {[%emt 0:0:27]} 60. b7 {[%emt 0:1:7]} c5 {[%emt 0:0:12]} 61. dxc5+ {[%emt 0:0:3]} Kc6 {[%emt 0:0:5]} 62. Re7 {[%emt 0:0:49]} Rd8 {[%emt 0:0:20]} 63. Re6+ {[%emt 0:0:13]} Kxb7 {[%emt 0:0:4]} 64. Rb6+ {[%emt 0:0:15]} Kc7 {[%emt 0:0:30]} 65. Rxf6 {[%emt 0:0:33]} Re8 {[%emt 0:0:13]} 66. Kd5 {[%emt 0:0:8]} Rd8+ {[%emt 0:0:4]} 67. Rd6 {[%emt 0:0:7]} Rh8 {[%emt 0:0:4]} 68. Rxa6 {[%emt 0:0:14]} 1-0

[Event "56th Biel Festival MTO 2023"]
[White "Quesada Perez,Luis Ernesto"]
[Black "Jinan Jomon"]
[Site "Biel"]
[Round "6.8"]
[Annotator "ChessBase"]
[Result "1/2-1/2"]
[Date "2023.07.24"]
[WhiteElo "2553"]
[BlackElo "2409"]
[PlyCount "237"]
[TimeControl "60"]

1. d4 {[%emt 0:0:0]} Nf6 {[%emt 0:0:0]} 2. c4 {[%emt 0:0:0]} e6 {[%emt 0:0:0]} 3. Nf3 {[%emt 0:0:0]} Bb4+ {[%emt 0:0:0]} 4. Nbd2 {[%emt 0:0:0]} b6 {[%emt 0:0:0]} 5. a3 {[%emt 0:0:0]} Bxd2+ {[%emt 0:0:0]} 6. Qxd2 {[%emt 0:0:0]} Bb7 {[%emt 0:0:0]} 7. e3 {[%emt 0:0:0]} O-O {[%emt 0:0:0]} 8. b4 {[%emt 0:0:0]} a5 {[%emt 0:0:0]} 9. Bb2 {[%emt 0:0:0]} Ne4 {[%emt 0:0:0]} 10. Qc2 {[%emt 0:0:0]} axb4 {[%emt 0:0:0]} 11. axb4 {[%emt 0:0:0]} Rxa1+ {[%emt 0:0:0]} 12. Bxa1 {[%emt 0:0:0]} Qe7 {[%emt 0:0:29]} 13. c5 {[%emt 0:0:20]} Bd5 {[%emt 0:3:23]} 14. Bd3 {[%emt 0:1:47]} f5 {[%emt 0:0:43]} 15. Bc3 {[%emt 0:5:43]} d6 {[%emt 0:17:4]} 16. O-O {[%emt 0:6:25]} dxc5 {[%emt 0:20:40]} 17. dxc5 {[%emt 0:0:25]} bxc5 {[%emt 0:0:45]} 18. bxc5 {[%emt 0:0:1]} Qxc5 {[%emt 0:5:52]} 19. Bxe4 {[%emt 0:0:19]} Bxe4 {[%emt 0:0:27]} 20. Qb2 {[%emt 0:0:1]} Qe7 {[%emt 0:6:31]} 21. Ne5 {[%emt 0:0:55]} Nd7 {[%emt 0:6:12]} 22. f3 {[%emt 0:2:46]} Rb8 {[%emt 0:12:5]} 23. Qd2 {[%emt 0:13:47]} Bd5 {[%emt 0:1:18]} 24. Nxd7 {[%emt 0:0:46]} Qxd7 {[%emt 0:0:7]} 25. Bd4 {[%emt 0:0:28]} h6 {[%emt 0:1:29]} 26. Rc1 {[%emt 0:0:14]} Rb7 {[%emt 0:7:33]} 27. Qc3 {[%emt 0:2:21]} Qf7 {[%emt 0:2:2]} 28. h3 {[%emt 0:1:13]} c6 {[%emt 0:2:56]} 29. Ra1 {[%emt 0:0:20]} Kh7 {[%emt 0:0:59]} 30. Qc2 {[%emt 0:1:24]} Qg6 {[%emt 0:0:50]} 31. Kh2 {[%emt 0:0:14]} Qe8 {[%emt 0:2:54]} 32. Be5 {[%emt 0:0:40]} Bb3 {[%emt 0:4:17]} 33. Qc5 {[%emt 0:10:58]} Bd5 {[%emt 0:4:54]} 34. Ra4 {[%emt 0:3:39]} Qe7 {[%emt 0:1:15]} 35. Qxe7 {[%emt 0:2:56]} Rxe7 {[%emt 0:0:2]} 36. e4 {[%emt 0:0:1]} fxe4 {[%emt 0:0:56]} 37. fxe4 {[%emt 0:0:2]} Bb3 {[%emt 0:0:6]} 38. Rb4 {[%emt 0:0:8]} Bc2 {[%emt 0:0:18]} 39. Rc4 {[%emt 0:0:36]} Bd3 {[%emt 0:0:10]} 40. Rd4 {[%emt 0:0:7]} Bb5 {[%emt 0:2:14]} 41. Kg3 {[%emt 0:30:47]} Kg6 {[%emt 0:0:0]} 42. Kf4 {[%emt 0:0:0]} Rf7+ {[%emt 0:0:0]} 43. Ke3 {[%emt 0:0:0]} Ra7 {[%emt 0:0:0]} 44. Rd6 {[%emt 0:0:0]} Kf7 {[%emt 0:0:0]} 45. h4 {[%emt 0:0:0]} c5 {[%emt 0:9:36]} 46. Rd8 {[%emt 0:0:0]} Kg6 {[%emt 0:13:49]} 47. g4 {[%emt 0:0:0]} Ra3+ {[%emt 0:1:8]} 48. Kf4 {[%emt 0:0:0]} Ra7 {[%emt 0:2:47]} 49. h5+ {[%emt 0:0:0]} Kf7 {[%emt 0:1:3]} 50. Rc8 {[%emt 0:0:0]} g5+ {[%emt 0:4:30]} 51. hxg6+ {[%emt 0:0:0]} Kxg6 {[%emt 0:0:2]} 52. Rxc5 {[%emt 0:0:0]} Be2 {[%emt 0:1:12]} 53. Rc6 {[%emt 0:0:0]} Rf7+ {[%emt 0:1:33]} 54. Kg3 {[%emt 0:0:0]} Re7 {[%emt 0:0:52]} 55. Rc8 {[%emt 0:0:0]} Bd3 {[%emt 0:1:50]} 56. Kf3 {[%emt 0:0:0]} Rf7+ {[%emt 0:0:31]} 57. Ke3 {[%emt 0:0:0]} Bb5 {[%emt 0:0:36]} 58. Rg8+ {[%emt 0:0:0]} Kh7 {[%emt 0:0:3]} 59. Rb8 {[%emt 0:0:0]} Bc4 {[%emt 0:0:20]} 60. Rh8+ {[%emt 0:0:0]} Kg6 {[%emt 0:0:1]} 61. Bf4 {[%emt 0:0:0]} Kg7 {[%emt 0:0:0]} 62. Be5+ {[%emt 0:0:0]} Kg6 {[%emt 0:0:0]} 63. Bf4 {[%emt 0:0:0]} Kg7 {[%emt 0:0:0]} 64. Rc8 {[%emt 0:0:0]} Bb3 {[%emt 0:0:0]} 65. Rc1 {[%emt 0:0:0]} Kg6 {[%emt 0:0:0]} 66. Rh1 {[%emt 0:0:0]} Rh7 {[%emt 0:0:0]} 67. Kd4 {[%emt 0:0:0]} h5 {[%emt 0:0:0]} 68. Rh3 {[%emt 0:0:0]} Bd1 {[%emt 0:0:0]} 69. gxh5+ {[%emt 0:0:0]} Rxh5 {[%emt 0:0:0]} 70. Rg3+ {[%emt 0:0:0]} Kf6 {[%emt 0:0:0]} 71. Bc7 {[%emt 0:0:0]} Rb5 {[%emt 0:0:0]} 72. Rg1 {[%emt 0:0:0]} Be2 {[%emt 0:2:44]} 73. Ke3 {[%emt 0:0:0]} Bh5 {[%emt 0:0:31]} 74. Rf1+ {[%emt 0:0:0]} Ke7 {[%emt 0:0:12]} 75. Kf4 {[%emt 0:0:0]} Bg6 {[%emt 0:1:29]} 76. Rd1 {[%emt 0:0:0]} Ke8 {[%emt 0:3:14]} 77. Rd4 {[%emt 0:0:0]} Ke7 {[%emt 0:0:45]} 78. Bd8+ {[%emt 0:0:0]} Kf7 {[%emt 0:0:20]} 79. Ra4 {[%emt 0:0:0]} Ke8 {[%emt 0:1:4]} 80. Bf6 {[%emt 0:0:0]} Kf7 {[%emt 0:1:3]} 81. Bh4 {[%emt 0:0:0]} Rh5 {[%emt 0:0:39]} 82. Bg3 {[%emt 0:0:0]} Rb5 {[%emt 0:0:28]} 83. Bf2 {[%emt 0:0:0]} Bh5 {[%emt 0:0:31]} 84. Ra7+ {[%emt 0:0:0]} Kg6 {[%emt 0:0:32]} 85. Bd4 {[%emt 0:0:0]} Bd1 {[%emt 0:0:16]} 86. Rg7+ {[%emt 0:0:0]} Kh6 {[%emt 0:0:31]} 87. Rg2 {[%emt 0:0:0]} Kh7 {[%emt 0:0:43]} 88. Bg7 {[%emt 0:0:0]} Bb3 {[%emt 0:0:6]} 89. Be5 {[%emt 0:0:0]} Bc4 {[%emt 0:0:54]} 90. Rg7+ {[%emt 0:0:0]} Kh6 {[%emt 0:0:6]} 91. Rc7 {[%emt 0:0:0]} Bb3 {[%emt 0:0:45]} 92. Bd6 {[%emt 0:0:0]} Rb8 {[%emt 0:0:30]} 93. Ke5 {[%emt 0:0:0]} Kg6 {[%emt 0:0:34]} 94. Rc3 {[%emt 0:0:0]} Rb5+ {[%emt 0:0:36]} 95. Bc5 {[%emt 0:0:0]} Rb7 {[%emt 0:0:17]} 96. Kd6 {[%emt 0:0:0]} Ba2 {[%emt 0:0:29]} 97. Rg3+ {[%emt 0:0:0]} Kh5 {[%emt 0:0:9]} 98. Bd4 {[%emt 0:0:0]} Rf7 {[%emt 0:0:29]} 99. Bh8 {[%emt 0:0:0]} Kh4 {[%emt 0:0:34]} 100. Rg1 {[%emt 0:0:0]} Rf3 {[%emt 0:0:43]} 101. Bd4 {[%emt 0:0:0]} Bb3 {[%emt 0:0:22]} 102. Ke5 {[%emt 0:0:0]} Kh3 {[%emt 0:0:14]} 103. Rh1+ {[%emt 0:0:0]} Kg2 {[%emt 0:0:11]} 104. Rb1 {[%emt 0:0:0]} Bc4 {[%emt 0:0:55]} 105. Rc1 {[%emt 0:0:0]} Bb3 {[%emt 0:0:8]} 106. Re1 {[%emt 0:0:0]} Bc4 {[%emt 0:0:21]} 107. Rg1+ {[%emt 0:0:0]} Kh3 {[%emt 0:0:31]} 108. Rg7 {[%emt 0:0:0]} Bb3 {[%emt 0:0:13]} 109. Bb2 {[%emt 0:0:0]} Rf2 {[%emt 0:1:21]} 110. Bc1 {[%emt 0:0:0]} Rf1 {[%emt 0:0:11]} 111. Bf4 {[%emt 0:0:39]} Rf3 {[%emt 0:0:14]} 112. Rg1 {[%emt 0:0:53]} Bc4 {[%emt 0:0:28]} 113. Rh1+ {[%emt 0:0:15]} Kg4 {[%emt 0:0:50]} 114. Rc1 {[%emt 0:0:9]} Bb3 {[%emt 0:0:6]} 115. Rb1 {[%emt 0:0:34]} Bc4 {[%emt 0:0:18]} 116. Bh2 {[%emt 0:0:11]} Kh3 {[%emt 0:0:16]} 117. Rb2 {[%emt 0:0:6]} Bb3 {[%emt 0:0:17]} 118. Kd4 {[%emt 0:0:44]} Kg4 {[%emt 0:0:14]} 119. Bg1 {[%emt 0:0:42]} 1/2-1/2

[Event "56th Biel Festival MTO 2023"]
[White "Chasin,Nico"]
[Black "Samadov,Read"]
[Site "Biel"]
[Round "6.9"]
[Annotator "ChessBase"]
[Result "1/2-1/2"]
[Date "2023.07.24"]
[WhiteElo "2455"]
[BlackElo "2482"]
[PlyCount "66"]
[TimeControl "60"]

1. d4 {[%emt 0:0:0]} Nf6 {[%emt 0:0:0]} 2. c4 {[%emt 0:0:0]} g6 {[%emt 0:0:0]} 3. Nc3 {[%emt 0:0:0]} Bg7 {[%emt 0:0:0]} 4. e4 {[%emt 0:0:0]} d6 {[%emt 0:0:0]} 5. Be2 {[%emt 0:0:0]} O-O {[%emt 0:0:0]} 6. Be3 {[%emt 0:0:0]} Nc6 {[%emt 0:0:0]} 7. d5 {[%emt 0:0:0]} Ne5 {[%emt 0:0:0]} 8. f4 {[%emt 0:0:0]} Neg4 {[%emt 0:0:0]} 9. Bd2 {[%emt 0:0:0]} Nh6 {[%emt 0:0:0]} 10. h3 {[%emt 0:1:13]} e6 {[%emt 0:0:0]} 11. dxe6 {[%emt 0:3:2]} fxe6 {[%emt 0:0:0]} 12. g4 {[%emt 0:4:11]} b5 {[%emt 0:0:0]} 13. cxb5 {[%emt 0:0:49]} Bb7 {[%emt 0:0:0]} 14. Qc2 {[%emt 0:0:17]} d5 {[%emt 0:0:0]} 15. O-O-O {[%emt 0:0:9]} dxe4 {[%emt 0:0:0]} 16. Bc4 {[%emt 0:0:1]} Nd5 {[%emt 0:0:0]} 17. Nge2 {[%emt 0:0:14]} a6 {[%emt 0:3:2]} 18. Nxd5 {[%emt 0:0:7]} exd5 {[%emt 0:0:8]} 19. Bb4 {[%emt 0:0:2]} axb5 {[%emt 0:0:31]} 20. Bxf8 {[%emt 0:0:10]} Bxf8 {[%emt 0:0:14]} 21. Bb3 {[%emt 0:0:3]} Kh8 {[%emt 0:5:32]} 22. Rhe1 {[%emt 0:0:11]} b4 {[%emt 0:10:38]} 23. Ng3 {[%emt 0:0:6]} c5 {[%emt 0:16:29]} 24. Nxe4 {[%emt 0:2:0]} c4 {[%emt 0:2:13]} 25. Bxc4 {[%emt 0:0:7]} Rc8 {[%emt 0:10:13]} 26. Kb1 {[%emt 0:3:49]} Qb6 {[%emt 0:7:52]} 27. b3 {[%emt 0:5:22]} dxc4 {[%emt 0:7:34]} 28. Rd7 {[%emt 0:0:1]} Bxe4 {[%emt 0:3:43]} 29. Qxe4 {[%emt 0:2:7]} c3 {[%emt 0:4:3]} 30. Qe5+ {[%emt 0:7:25]} Kg8 {[%emt 0:0:6]} 31. Qd5+ {[%emt 0:0:5]} Kh8 {[%emt 0:0:5]} 32. Qe5+ {[%emt 0:1:5]} Kg8 {[%emt 0:0:6]} 33. Qd5+ {[%emt 0:0:19]} Kh8 {[%emt 0:0:5]} 1/2-1/2

[Event "56th Biel Festival MTO 2023"]
[White "Huang,Renjie"]
[Black "Rathanvel,V S"]
[Site "Biel"]
[Round "6.10"]
[Annotator "ChessBase"]
[Result "1/2-1/2"]
[Date "2023.07.24"]
[WhiteElo "2445"]
[BlackElo "2463"]
[PlyCount "70"]
[TimeControl "60"]

1. e4 {[%emt 0:0:0]} c5 {[%emt 0:0:0]} 2. Nf3 {[%emt 0:0:0]} d6 {[%emt 0:0:0]} 3. d4 {[%emt 0:0:0]} cxd4 {[%emt 0:0:0]} 4. Nxd4 {[%emt 0:0:0]} Nf6 {[%emt 0:0:0]} 5. Nc3 {[%emt 0:0:0]} a6 {[%emt 0:0:0]} 6. Bd3 {[%emt 0:0:0]} e5 {[%emt 0:0:0]} 7. Nde2 {[%emt 0:0:0]} Be7 {[%emt 0:0:0]} 8. O-O {[%emt 0:0:0]} O-O {[%emt 0:0:0]} 9. Ng3 {[%emt 0:0:0]} Be6 {[%emt 0:0:0]} 10. Nd5 {[%emt 0:0:0]} Bxd5 {[%emt 0:0:0]} 11. exd5 {[%emt 0:0:0]} g6 {[%emt 0:0:0]} 12. c4 {[%emt 0:0:0]} Nbd7 {[%emt 0:0:0]} 13. Kh1 {[%emt 0:0:0]} Ne8 {[%emt 0:1:13]} 14. Bh6 {[%emt 0:0:40]} Ng7 {[%emt 0:0:9]} 15. f4 {[%emt 0:0:43]} exf4 {[%emt 0:18:44]} 16. Bxf4 {[%emt 0:2:45]} f5 {[%emt 0:8:52]} 17. Ne2 {[%emt 0:1:36]} a5 {[%emt 0:5:24]} 18. Nd4 {[%emt 0:1:49]} Bf6 {[%emt 0:10:39]} 19. Ne6 {[%emt 0:5:21]} Nxe6 {[%emt 0:0:22]} 20. dxe6 {[%emt 0:0:3]} Nc5 {[%emt 0:12:27]} 21. Bc2 {[%emt 0:1:0]} Be5 {[%emt 0:7:48]} 22. Qd5 {[%emt 0:4:40]} Qe7 {[%emt 0:1:44]} 23. Bxe5 {[%emt 0:2:2]} dxe5 {[%emt 0:0:7]} 24. Qxe5 {[%emt 0:0:3]} Ra6 {[%emt 0:5:3]} 25. Qc3 {[%emt 0:2:22]} Qxe6 {[%emt 0:12:34]} 26. Rae1 {[%emt 0:0:21]} Qf6 {[%emt 0:1:3]} 27. Qe3 {[%emt 0:5:44]} Qxb2 {[%emt 0:7:21]} 28. Bxf5 {[%emt 0:10:30]} Raf6 {[%emt 0:0:48]} 29. Qxc5 {[%emt 0:0:21]} Rxf5 {[%emt 0:0:4]} 30. Rxf5 {[%emt 0:0:4]} Rxf5 {[%emt 0:0:8]} 31. Qc8+ {[%emt 0:1:19]} Kg7 {[%emt 0:0:57]} 32. h3 {[%emt 0:0:7]} Rf7 {[%emt 0:0:28]} 33. Qc5 {[%emt 0:2:3]} b6 {[%emt 0:0:44]} 34. Qd6 {[%emt 0:1:10]} Qf6 {[%emt 0:3:34]} 35. Qd5 {[%emt 0:0:38]} Re7 {[%emt 0:2:18]} 1/2-1/2

[Event "56th Biel Festival MTO 2023"]
[White "Saraci,Nderim"]
[Black "Harikrishnan.A.Ra"]
[Site "Biel"]
[Round "6.11"]
[Annotator "ChessBase"]
[Result "1-0"]
[Date "2023.07.24"]
[WhiteElo "2472"]
[BlackElo "2406"]
[PlyCount "123"]
[TimeControl "60"]

1. Nf3 {[%emt 0:0:0]} d5 {[%emt 0:0:0]} 2. d4 {[%emt 0:0:0]} Nf6 {[%emt 0:0:0]} 3. c4 {[%emt 0:0:0]} c6 {[%emt 0:0:0]} 4. Qc2 {[%emt 0:0:0]} dxc4 {[%emt 0:0:0]} 5. Qxc4 {[%emt 0:0:0]} Bf5 {[%emt 0:0:0]} 6. g3 {[%emt 0:0:0]} e6 {[%emt 0:0:0]} 7. Bg2 {[%emt 0:0:7]} Be7 {[%emt 0:0:0]} 8. O-O {[%emt 0:0:26]} O-O {[%emt 0:0:0]} 9. a4 {[%emt 0:3:1]} a5 {[%emt 0:0:0]} 10. Nc3 {[%emt 0:1:26]} Nbd7 {[%emt 0:18:21]} 11. Nh4 {[%emt 0:18:59]} Bc2 {[%emt 0:12:33]} 12. Nd1 {[%emt 0:11:28]} Be4 {[%emt 0:2:38]} 13. Bxe4 {[%emt 0:6:41]} Nxe4 {[%emt 0:0:8]} 14. Nf3 {[%emt 0:0:25]} Nef6 {[%emt 0:12:53]} 15. Nc3 {[%emt 0:1:38]} Nd5 {[%emt 0:8:8]} 16. e4 {[%emt 0:2:15]} Nb4 {[%emt 0:0:34]} 17. Bf4 {[%emt 0:2:9]} Qb6 {[%emt 0:4:59]} 18. Rad1 {[%emt 0:4:41]} Rac8 {[%emt 0:3:5]} 19. Qe2 {[%emt 0:4:49]} Qa6 {[%emt 0:12:54]} 20. Qxa6 {[%emt 0:7:8]} Nxa6 {[%emt 0:0:8]} 21. Nd2 {[%emt 0:11:38]} Nb6 {[%emt 0:0:34]} 22. b3 {[%emt 0:1:24]} Rfd8 {[%emt 0:4:15]} 23. Nc4 {[%emt 0:1:48]} Nxc4 {[%emt 0:0:6]} 24. bxc4 {[%emt 0:0:6]} Rd7 {[%emt 0:1:42]} 25. Be3 {[%emt 0:4:29]} Rcd8 {[%emt 0:5:25]} 26. Rb1 {[%emt 0:1:49]} Nb4 {[%emt 0:2:55]} 27. Rfc1 {[%emt 0:1:22]} Bf6 {[%emt 0:2:57]} 28. Ne2 {[%emt 0:5:3]} Kf8 {[%emt 0:1:4]} 29. Kf1 {[%emt 0:3:9]} Ke8 {[%emt 0:0:7]} 30. e5 {[%emt 0:2:16]} Be7 {[%emt 0:0:6]} 31. c5 {[%emt 0:0:30]} Nd5 {[%emt 0:4:36]} 32. Nc3 {[%emt 0:1:46]} Nb4 {[%emt 0:3:15]} 33. Ne4 {[%emt 0:0:21]} Rd5 {[%emt 0:1:11]} 34. Rc4 {[%emt 0:1:6]} f5 {[%emt 0:0:37]} 35. Nd6+ {[%emt 0:2:3]} Bxd6 {[%emt 0:0:4]} 36. exd6 {[%emt 0:1:23]} Rb8 {[%emt 0:2:25]} 37. Bf4 {[%emt 0:2:41]} Kd7 {[%emt 0:0:12]} 38. Be5 {[%emt 0:0:32]} g6 {[%emt 0:0:59]} 39. Ke2 {[%emt 0:0:27]} b6 {[%emt 0:0:33]} 40. f4 {[%emt 0:0:47]} Rb7 {[%emt 0:0:24]} 41. Rb3 {[%emt 0:0:0]} Kc8 {[%emt 0:0:0]} 42. h3 {[%emt 0:0:0]} Kb8 {[%emt 0:6:26]} 43. g4 {[%emt 0:0:55]} Ka7 {[%emt 0:0:19]} 44. gxf5 {[%emt 0:9:42]} exf5 {[%emt 0:0:45]} 45. h4 {[%emt 0:0:44]} Na6 {[%emt 0:6:49]} 46. Rd3 {[%emt 0:3:35]} Ka8 {[%emt 0:10:9]} 47. cxb6 {[%emt 0:6:47]} Rxb6 {[%emt 0:0:2]} 48. h5 {[%emt 0:0:7]} Rb2+ {[%emt 0:4:9]} 49. Kd1 {[%emt 0:0:53]} c5 {[%emt 0:2:5]} 50. hxg6 {[%emt 0:1:12]} hxg6 {[%emt 0:0:31]} 51. Rh3 {[%emt 0:1:43]} Rb6 {[%emt 0:0:42]} 52. Rh8+ {[%emt 0:1:17]} Rb8 {[%emt 0:0:31]} 53. Rh7 {[%emt 0:0:35]} Rb7 {[%emt 0:0:32]} 54. Rh6 {[%emt 0:0:26]} Rb1+ {[%emt 0:2:45]} 55. Kd2 {[%emt 0:0:31]} Rg1 {[%emt 0:0:21]} 56. Rh7 {[%emt 0:1:7]} Rb1 {[%emt 0:1:16]} 57. d7 {[%emt 0:1:22]} Nb8 {[%emt 0:0:1]} 58. Kc2 {[%emt 0:3:28]} Rb7 {[%emt 0:1:26]} 59. Rxc5 {[%emt 0:1:23]} Rxc5+ {[%emt 0:0:50]} 60. dxc5 {[%emt 0:0:7]} Rxd7 {[%emt 0:0:30]} 61. Rh8 {[%emt 0:0:19]} Rb7 {[%emt 0:0:0]} 62. c6 {[%emt 0:0:0]} 1-0